[Event "Schack-SM 2022: Mastarklassen-Elit"]
[Site "Fyrishov, Idrottsgatan 2, Uppsala, Sweden"]
[Date "2022.07.06"]
[Round "5.3"]
[White "Engqvist, Thomas"]
[Black "Thorn, Eric"]
[Result "1/2-1/2"]
[TimeControl "90 minutes for 40 moves + 30 minutes for the rest of the game + 30 seconds per move from move one."]
[WhiteTitle "IM"]
[BlackTitle "FM"]
[WhiteFideId "1700332"]
[BlackFideId "1710729"]
[WhiteElo "2330"]
[BlackElo "2366"]

1. Nf3 {[%clk 01:30:56]} {[%emt 00:00:03]} d5 {[%clk 01:29:54]} {[%emt
00:01:06]} 2. d4 {[%clk 01:31:01]} {[%emt 00:00:26]} Nf6 {[%clk 01:29:22]}
{[%emt 00:01:02]} 3. c4 {[%clk 01:31:21]} {[%emt 00:00:09]} dxc4 {[%clk
01:29:10]} {[%emt 00:00:43]} 4. Qa4+ {[%clk 01:30:52]} {[%emt 00:00:59]} Nbd7
{[%clk 01:28:26]} {[%emt 00:01:14]} 5. Nc3 {[%clk 01:30:47]} {[%emt 00:00:34]}
a6 {[%clk 01:18:29]} {[%emt 00:10:29]} 6. e4 {[%clk 01:26:13]} {[%emt
00:05:03]} e6 {[%clk 01:05:20]} {[%emt 00:13:40]} 7. Bxc4 {[%clk 01:08:14]}
{[%emt 00:18:28]} Rb8 {[%clk 01:00:27]} {[%emt 00:05:23]} 8. Qc2 {[%clk
01:08:24]} {[%emt 00:00:19]} b5 {[%clk 00:59:54]} {[%emt 00:01:04]} 9. Be2
{[%clk 01:07:11]} {[%emt 00:01:42]} Bb7 {[%clk 00:58:33]} {[%emt 00:01:52]} 10.
e5 {[%clk 01:04:07]} {[%emt 00:03:34]} Nd5 {[%clk 00:55:08]} {[%emt 00:03:55]}
11. a4 {[%clk 01:01:02]} {[%emt 00:03:35]} b4 {[%clk 00:44:41]} {[%emt
00:10:58]} 12. Nxd5 {[%clk 00:58:34]} {[%emt 00:02:58]} Bxd5 {[%clk 00:44:03]}
{[%emt 00:01:07]} 13. Bxa6 {[%clk 00:57:55]} {[%emt 00:01:10]} b3 {[%clk
00:44:20]} {[%emt 00:00:13]} 14. Qe2 {[%clk 00:55:06]} {[%emt 00:03:19]} Bb4+
{[%clk 00:42:06]} {[%emt 00:02:43]} 15. Bd2 {[%clk 00:49:50]} {[%emt 00:05:46]}
Bxf3 {[%clk 00:36:50]} {[%emt 00:05:46]} 16. gxf3 {[%clk 00:50:07]} {[%emt
00:00:13]} O-O {[%clk 00:31:04]} {[%emt 00:06:16]} 17. Bxb4 {[%clk 00:44:36]}
{[%emt 00:06:02]} Rxb4 {[%clk 00:31:21]} {[%emt 00:00:12]} 18. Qd2 {[%clk
00:41:53]} {[%emt 00:03:13]} c5 {[%clk 00:30:40]} {[%emt 00:01:11]} 19. dxc5
{[%clk 00:41:02]} {[%emt 00:01:21]} Qa5 {[%clk 00:30:19]} {[%emt 00:00:51]} 20.
Be2 {[%clk 00:34:29]} {[%emt 00:07:03]} Nxe5 {[%clk 00:26:30]} {[%emt
00:04:18]} 21. Rg1 {[%clk 00:26:57]} {[%emt 00:08:02]} Rc8 {[%clk 00:18:45]}
{[%emt 00:08:16]} 22. Rc1 {[%clk 00:19:37]} {[%emt 00:07:51]} Rxa4 {[%clk
00:09:17]} {[%emt 00:09:58]} 23. Qxa5 {[%clk 00:19:49]} {[%emt 00:00:18]} Rxa5
{[%clk 00:09:43]} {[%emt 00:00:03]} 24. f4 {[%clk 00:19:56]} {[%emt 00:00:23]}
Ng6 {[%clk 00:06:00]} {[%emt 00:04:12]} 25. Rg3 {[%clk 00:19:32]} {[%emt
00:00:56]} Raxc5 {[%clk 00:05:29]} {[%emt 00:01:00]} 26. Rxc5 {[%clk 00:19:56]}
{[%emt 00:00:06]} Rxc5 {[%clk 00:05:55]} {[%emt 00:00:04]} 27. Rxb3 {[%clk
00:20:22]} {[%emt 00:00:04]} Kf8 {[%clk 00:05:15]} {[%emt 00:01:09]} 28. Rb8+
{[%clk 00:20:22]} {[%emt 00:00:31]} Ke7 {[%clk 00:05:38]} {[%emt 00:00:07]} 29.
Rb7+ {[%clk 00:15:11]} {[%emt 00:05:40]} Ke8 {[%clk 00:01:01]} {[%emt
00:05:08]} 30. b4 {[%clk 00:10:18]} {[%emt 00:05:23]} Rf5 {[%clk 00:01:15]}
{[%emt 00:00:16]} 31. Bb5+ {[%clk 00:03:01]} {[%emt 00:07:47]} Kd8 {[%clk
00:01:04]} {[%emt 00:00:40]} 32. Bd3 {[%clk 00:00:57]} {[%emt 00:02:34]} Rxf4
{[%clk 00:01:29]} {[%emt 00:00:05]} 33. Bxg6 {[%clk 00:01:13]} {[%emt
00:00:14]} hxg6 {[%clk 00:01:52]} {[%emt 00:00:07]} 34. b5 {[%clk 00:00:51]}
{[%emt 00:00:52]} g5 {[%clk 00:00:50]} {[%emt 00:01:32]} 35. b6 {[%clk
00:01:08]} {[%emt 00:00:13]} e5 {[%clk 00:00:39]} {[%emt 00:00:41]} 36. Rb8+
{[%clk 00:00:32]} {[%emt 00:01:05]} Kd7 {[%clk 00:01:03]} {[%emt 00:00:06]} 37.
b7 {[%clk 00:00:37]} {[%emt 00:00:26]} Kc7 {[%clk 00:01:28]} {[%emt 00:00:05]}
38. Rg8 {[%clk 00:01:03]} {[%emt 00:00:04]} Kxb7 {[%clk 00:01:52]} {[%emt
00:00:07]} 39. Rxg7 {[%clk 00:01:29]} {[%emt 00:00:04]} g4 {[%clk 00:01:20]}
{[%emt 00:01:01]} 40. Rh7 {[%clk 00:01:00]} {[%emt 00:00:59]} Rf3 {[%clk
00:01:21]} {[%emt 00:00:28]} 41. Rg7 {[%clk 00:01:22]} {[%emt 00:00:09]} Rf4
{[%clk 00:00:47]} {[%emt 00:01:03]} 42. Rh7 {[%clk 00:01:47]} {[%emt 00:00:05]}
Kc6 {[%clk 00:24:44]} {[%emt 00:06:33]} 43. h3 {[%clk 00:32:11]} {[%emt
00:00:06]} gxh3 {[%clk 00:25:09]} {[%emt 00:00:06]} 44. Rxh3 {[%clk 00:32:36]}
{[%emt 00:00:05]} Kd5 {[%clk 00:25:34]} {[%emt 00:00:05]} 45. Ra3 {[%clk
00:32:30]} {[%emt 00:00:37]} Ke4 {[%clk 00:21:52]} {[%emt 00:04:12]} 46. Ke2
{[%clk 00:32:42]} {[%emt 00:00:17]} Kf5 {[%clk 00:21:20]} {[%emt 00:01:01]} 47.
Ra5 {[%clk 00:32:35]} {[%emt 00:00:38]} Rb4 {[%clk 00:21:28]} {[%emt 00:00:21]}
48. Ra7 {[%clk 00:32:05]} {[%emt 00:01:01]} f6 {[%clk 00:21:28]} {[%emt
00:00:29]} 49. Ra6 {[%clk 00:32:31]} {[%emt 00:00:05]} Kg5 {[%clk 00:20:50]}
{[%emt 00:01:07]} 50. Re6 {[%clk 00:32:53]} {[%emt 00:00:09]} Ra4 {[%clk
00:19:56]} {[%emt 00:01:21]} 51. Re8 {[%clk 00:32:36]} {[%emt 00:00:50]} Ra3
{[%clk 00:18:26]} {[%emt 00:01:59]} 52. Re6 {[%clk 00:31:08]} {[%emt 00:01:58]}
Kf5 {[%clk 00:18:33]} {[%emt 00:00:23]} 53. Rb6 {[%clk 00:27:15]} {[%emt
00:04:24]} Kg5 {[%clk 00:14:52]} {[%emt 00:04:10]} 54. f4+ {[%clk 00:21:06]}
{[%emt 00:06:40]} exf4 {[%clk 00:15:00]} {[%emt 00:00:22]} 55. Kf2 {[%clk
00:20:27]} {[%emt 00:01:08]} Kf5 {[%clk 00:13:08]} {[%emt 00:02:22]} 56. Rb8
{[%clk 00:18:36]} {[%emt 00:02:23]} Re3 {[%clk 00:06:27]} {[%emt 00:07:08]} 57.
Ra8 {[%clk 00:18:50]} {[%emt 00:00:17]} Re5 {[%clk 00:04:35]} {[%emt 00:02:22]}
58. Ra7 {[%clk 00:16:14]} {[%emt 00:03:08]} Kg4 {[%clk 00:04:10]} {[%emt
00:00:53]} 59. Rg7+ {[%clk 00:16:36]} {[%emt 00:00:10]} Rg5 {[%clk 00:04:34]}
{[%emt 00:00:05]} 60. Ra7 {[%clk 00:16:57]} {[%emt 00:00:09]} Rg8 {[%clk
00:04:15]} {[%emt 00:00:48]} 61. Rb7 {[%clk 00:17:11]} {[%emt 00:00:17]} Rg6
{[%clk 00:03:20]} {[%emt 00:01:24]} 62. Ra7 {[%clk 00:17:27]} {[%emt 00:00:16]}
Rg5 {[%clk 00:02:51]} {[%emt 00:00:59]} 63. Ra8 {[%clk 00:17:20]} {[%emt
00:00:37]} Rh5 {[%clk 00:01:38]} {[%emt 00:01:42]} 64. Rg8+ {[%clk 00:17:43]}
{[%emt 00:00:06]} Rg5 {[%clk 00:02:00]} {[%emt 00:00:08]} 65. Ra8 {[%clk
00:18:06]} {[%emt 00:00:08]} Rh5 {[%clk 00:02:22]} {[%emt 00:00:07]} 66. Rg8+
{[%clk 00:18:23]} {[%emt 00:00:14]} Kf5 {[%clk 00:02:36]} {[%emt 00:01:54]} 67.
Ra8 {[%clk 00:18:32]} {[%emt 00:00:21]} Rh2+ {[%clk 00:02:02]} {[%emt
00:01:04]} 68. Kf3 {[%clk 00:18:49]} {[%emt 00:00:13]} Rh3+ {[%clk 00:02:27]}
{[%emt 00:00:05]} 69. Kf2 {[%clk 00:19:00]} {[%emt 00:00:19]} f3 {[%clk
00:02:19]} {[%emt 00:00:38]} 70. Ra4 {[%clk 00:17:25]} {[%emt 00:02:05]} Kg5
{[%clk 00:02:24]} {[%emt 00:00:25]} 71. Rb4 {[%clk 00:15:07]} {[%emt 00:02:48]}
f5 {[%clk 00:01:54]} {[%emt 00:01:00]} 72. Ra4 {[%clk 00:15:13]} {[%emt
00:00:24]} Rh2+ {[%clk 00:00:46]} {[%emt 00:01:37]} 73. Kxf3 {[%clk 00:15:37]}
{[%emt 00:00:06]} Rb2 {[%clk 00:01:05]} {[%emt 00:00:09]} 74. Ra3 {[%clk
00:15:43]} {[%emt 00:00:27]} Rb4 {[%clk 00:01:22]} {[%emt 00:00:12]} 75. Kg3
{[%clk 00:15:25]} {[%emt 00:00:49]} Rg4+ {[%clk 00:01:18]} {[%emt 00:00:33]} 76.
Kf3 {[%clk 00:15:48]} {[%emt 00:00:07]} Rh4 {[%clk 00:01:40]} {[%emt 00:00:08]}
77. Kf2 {[%clk 00:15:57]} {[%emt 00:00:21]} Rh2+ {[%clk 00:01:23]} {[%emt
00:00:45]} 78. Kg3 {[%clk 00:16:17]} {[%emt 00:00:12]} Rh6 {[%clk 00:01:49]}
{[%emt 00:00:04]} 79. Ra8 {[%clk 00:16:23]} {[%emt 00:00:25]} Re6 {[%clk
00:01:21]} {[%emt 00:00:58]} 80. Rg8+ {[%clk 00:16:42]} {[%emt 00:00:11]} Kf6
{[%clk 00:01:48]} {[%emt 00:00:02]} 81. Kf4 {[%clk 00:17:02]} {[%emt 00:00:10]}
Re4+ {[%clk 00:02:09]} {[%emt 00:00:08]} 82. Kf3 {[%clk 00:17:29]} {[%emt
00:00:05]} Ra4 {[%clk 00:02:21]} {[%emt 00:00:17]} 83. Rb8 {[%clk 00:17:54]}
{[%emt 00:00:06]} Kg6 {[%clk 00:02:00]} {[%emt 00:00:51]} 84. Rc8 {[%clk
00:18:18]} {[%emt 00:00:06]} Rb4 {[%clk 00:01:25]} {[%emt 00:01:05]} 85. Ra8
{[%clk 00:18:42]} {[%emt 00:00:05]} Kg5 {[%clk 00:01:26]} {[%emt 00:00:29]} 86.
Rg8+ {[%clk 00:19:06]} {[%emt 00:00:07]} Kf6 {[%clk 00:01:52]} {[%emt
00:00:04]} 87. Rf8+ {[%clk 00:19:30]} {[%emt 00:00:06]} Ke6 {[%clk 00:02:05]}
{[%emt 00:00:16]} 88. Re8+ {[%clk 00:19:53]} {[%emt 00:00:08]} Kf6 {[%clk
00:02:09]} {[%emt 00:00:25]} 89. Rf8+ {[%clk 00:20:17]} {[%emt 00:00:07]} Ke6
{[%clk 00:02:35]} {[%emt 00:00:03]} 90. Re8+ {[%clk 00:20:42]} {[%emt
00:00:05]} Kf7 {[%clk 00:03:02]} {[%emt 00:00:04]} 91. Ra8 {[%clk 00:21:08]}
{[%emt 00:00:04]} Rd4 {[%clk 00:02:38]} {[%emt 00:00:52]} 92. Rb8 {[%clk
00:21:28]} {[%emt 00:00:11]} Ra4 {[%clk 00:02:54]} {[%emt 00:00:13]} 93. Rc8
{[%clk 00:21:54]} {[%emt 00:00:06]} Ke7 {[%clk 00:03:02]} {[%emt 00:00:21]} 94.
Rc6 {[%clk 00:22:18]} {[%emt 00:00:06]} Kf7 {[%clk 00:03:11]} {[%emt 00:00:21]}
95. Rb6 {[%clk 00:22:44]} {[%emt 00:00:06]} Kg7 {[%clk 00:03:07]} {[%emt
00:00:32]} 96. Rc6 {[%clk 00:23:05]} {[%emt 00:00:09]} Rb4 {[%clk 00:03:04]}
{[%emt 00:00:31]} 97. Ra6 {[%clk 00:23:29]} {[%emt 00:00:08]} Rd4 {[%clk
00:03:17]} {[%emt 00:00:16]} 98. Rb6 {[%clk 00:23:54]} {[%emt 00:00:07]} Re4
{[%clk 00:03:32]} {[%emt 00:00:14]} 99. Ra6 {[%clk 00:24:19]} {[%emt 00:00:06]}
Kf7 {[%clk 00:03:46]} {[%emt 00:00:14]} 100. Rb6 {[%clk 00:24:43]} {[%emt
00:00:08]} Re6 {[%clk 00:03:53]} {[%emt 00:00:23]} 101. Rxe6 {[%clk 00:25:02]}
{[%emt 00:00:11]} Kxe6 {[%clk 00:04:19]} {[%emt 00:00:04]} 102. Kf4 {[%clk
00:25:27]} {[%emt 00:00:04]} Kf6 {[%clk 00:04:46]} {[%emt 00:00:04]} 103. Kf3
{[%clk 00:25:53]} {[%emt 00:00:04]} Kg6 {[%clk 00:05:11]} {[%emt 00:00:05]} 104.
Kf4 {[%clk 00:26:19]} {[%emt 00:00:04]} Kf6 {[%clk 00:05:37]} {[%emt 00:00:03]}
105. Kf3 {[%clk 00:26:46]} {[%emt 00:00:04]} Ke5 {[%clk 00:06:00]} {[%emt
00:00:07]} 106. Ke3 {[%clk 00:27:02]} {[%emt 00:00:13]} f4+ {[%clk 00:05:34]}
{[%emt 00:00:56]} 107. Kf3 {[%clk 00:26:28]} {[%emt 00:01:05]} Kf5 {[%clk
00:05:58]} {[%emt 00:00:07]} 108. Kf2 {[%clk 00:26:53]} {[%emt 00:00:03]} Kg4
{[%clk 00:06:15]} {[%emt 00:00:13]} 109. Kg2 {[%clk 00:27:19]} {[%emt
00:00:04]} f3+ {[%clk 00:06:25]} {[%emt 00:00:20]} 110. Kf2 {[%clk 00:27:45]}
{[%emt 00:00:04]} Kf4 {[%clk 00:06:47]} {[%emt 00:00:08]} 111. Kf1 {[%clk
00:28:10]} {[%emt 00:00:05]} Ke5 {[%clk 00:07:09]} {[%emt 00:00:08]} 112. Kf2
{[%clk 00:28:27]} {[%emt 00:00:14]} Ke4 {[%clk 00:07:33]} {[%emt 00:00:05]} 113.
Kf1 {[%clk 00:28:52]} {[%emt 00:00:05]} Kf4 {[%clk 00:07:56]} {[%emt 00:00:07]}
114. Kf2 {[%clk 00:29:18]} {[%emt 00:00:05]} Kg4 {[%clk 00:08:21]} {[%emt
00:00:04]} 115. Kf1 {[%clk 00:29:45]} {[%emt 00:00:04]} Kg3 {[%clk 00:08:44]}
{[%emt 00:00:07]} 116. Kg1 {[%clk 00:30:10]} {[%emt 00:00:05]} f2+ {[%clk
00:09:09]} {[%emt 00:00:05]} 117. Kf1 {[%clk 00:30:36]} {[%emt 00:00:03]} Kf3
{[%clk 00:09:35]} {[%emt 00:00:05]} 1/2-1/2

[Event "Schack-SM 2022: Mastarklassen-Elit"]
[Site "Fyrishov, Idrottsgatan 2, Uppsala, Sweden"]
[Date "2022.07.06"]
[Round "5.4"]
[White "Von Bahr, Oskar"]
[Black "Ernst, Thomas"]
[Result "1/2-1/2"]
[TimeControl "90 minutes for 40 moves + 30 minutes for the rest of the game + 30 seconds per move from move one."]
[WhiteTitle "IM"]
[BlackTitle "GM"]
[WhiteFideId "1703250"]
[BlackFideId "1700065"]
[WhiteElo "2386"]
[BlackElo "2289"]

1. d4 {[%clk 01:30:57]} {[%emt 00:00:02]} Nf6 {[%clk 01:29:29]} {[%emt
00:01:31]} 2. Bg5 {[%clk 01:31:18]} e6 {[%clk 01:29:29]} 3. e4 {[%clk
01:31:41]} {[%emt 24:01:24]} h6 {[%clk 01:28:28]} {[%emt 00:00:18]} 4. Bxf6
{[%clk 01:32:09]} {[%emt 00:00:03]} Qxf6 {[%clk 01:28:53]} {[%emt 00:00:05]} 5.
c3 {[%clk 01:32:30]} {[%emt 00:00:09]} d6 {[%clk 01:27:09]} {[%emt 00:02:13]} 6.
Bd3 {[%clk 01:32:44]} {[%emt 00:00:16]} Nd7 {[%clk 01:26:44]} {[%emt 00:00:56]}
7. Nd2 {[%clk 01:30:00]} {[%emt 00:03:13]} g6 {[%clk 01:26:40]} {[%emt
00:00:34]} 8. Ne2 {[%clk 01:29:22]} {[%emt 00:01:09]} Bg7 {[%clk 01:26:22]}
{[%emt 00:00:47]} 9. O-O {[%clk 01:29:04]} {[%emt 00:00:48]} Qe7 {[%clk
01:20:01]} {[%emt 00:06:52]} 10. f4 {[%clk 01:28:17]} {[%emt 00:01:16]} O-O
{[%clk 01:18:31]} {[%emt 00:02:00]} 11. e5 {[%clk 01:26:32]} {[%emt 00:02:16]}
b6 {[%clk 01:16:35]} {[%emt 00:02:25]} 12. Ng3 {[%clk 01:24:30]} {[%emt
00:02:32]} Bb7 {[%clk 01:13:22]} {[%emt 00:03:43]} 13. Qe2 {[%clk 01:22:23]}
{[%emt 00:02:37]} Rad8 {[%clk 01:11:21]} {[%emt 00:02:31]} 14. Rad1 {[%clk
01:18:47]} {[%emt 00:04:07]} dxe5 {[%clk 01:02:41]} {[%emt 00:09:11]} 15. fxe5
{[%clk 01:16:10]} {[%emt 00:03:06]} c5 {[%clk 01:02:00]} {[%emt 00:01:10]} 16.
Nc4 {[%clk 01:07:52]} {[%emt 00:08:49]} cxd4 {[%clk 00:51:53]} {[%emt
00:10:37]} 17. cxd4 {[%clk 01:08:05]} {[%emt 00:00:16]} Nb8 {[%clk 00:51:57]}
{[%emt 00:00:24]} 18. Qe3 {[%clk 01:00:22]} {[%emt 00:08:15]} Nc6 {[%clk
00:47:23]} {[%emt 00:05:03]} 19. Be4 {[%clk 00:56:10]} {[%emt 00:04:43]} f5
{[%clk 00:46:06]} {[%emt 00:01:47]} 20. exf6 {[%clk 00:52:48]} {[%emt
00:03:53]} Rxf6 {[%clk 00:46:29]} {[%emt 00:00:07]} 21. Rxf6 {[%clk 00:50:09]}
{[%emt 00:03:08]} Qxf6 {[%clk 00:46:18]} {[%emt 00:00:40]} 22. Bxc6 {[%clk
00:49:15]} {[%emt 00:01:25]} Bxc6 {[%clk 00:45:30]} {[%emt 00:01:18]} 23. Ne5
{[%clk 00:47:13]} {[%emt 00:02:32]} Be8 {[%clk 00:34:40]} {[%emt 00:11:18]} 24.
h3 {[%clk 00:38:23]} {[%emt 00:09:23]} Qg5 {[%clk 00:31:48]} {[%emt 00:03:20]}
25. Qxg5 {[%clk 00:34:28]} {[%emt 00:04:27]} hxg5 {[%clk 00:32:12]} {[%emt
00:00:05]} 26. Nf3 {[%clk 00:34:05]} {[%emt 00:00:53]} Bc6 {[%clk 00:31:44]}
{[%emt 00:00:56]} 27. Ne2 {[%clk 00:30:46]} {[%emt 00:03:52]} Bf6 {[%clk
00:29:05]} {[%emt 00:03:08]} 28. Rd2 {[%clk 00:24:46]} {[%emt 00:06:30]} e5
{[%clk 00:25:31]} {[%emt 00:04:03]} 29. dxe5 {[%clk 00:22:15]} {[%emt
00:03:02]} Rxd2 {[%clk 00:25:52]} {[%emt 00:00:09]} 30. Nxd2 {[%clk 00:22:44]}
{[%emt 00:00:02]} Bxe5 {[%clk 00:26:13]} {[%emt 00:00:09]} 31. b3 {[%clk
00:22:04]} {[%emt 00:01:10]} Kf7 {[%clk 00:21:37]} {[%emt 00:05:05]} 32. Kf2
{[%clk 00:21:35]} {[%emt 00:01:00]} Bf6 {[%clk 00:20:32]} {[%emt 00:01:33]} 33.
Nf3 {[%clk 00:20:02]} {[%emt 00:02:04]} Be4 {[%clk 00:20:26]} {[%emt 00:00:34]}
34. Ke3 {[%clk 00:18:33]} {[%emt 00:02:02]} Bb7 {[%clk 00:19:41]} {[%emt
00:01:12]} 35. Ng3 {[%clk 00:17:15]} {[%emt 00:01:50]} Ke6 {[%clk 00:16:05]}
{[%emt 00:04:04]} 36. Ne4 {[%clk 00:16:49]} {[%emt 00:00:58]} Bxe4 {[%clk
00:16:21]} {[%emt 00:00:15]} 37. Kxe4 {[%clk 00:17:14]} {[%emt 00:00:04]} a6
{[%clk 00:16:25]} {[%emt 00:00:25]} 38. Ne1 {[%clk 00:13:08]} {[%emt 00:04:38]}
Kd6 {[%clk 00:16:08]} {[%emt 00:00:45]} 39. Nd3 {[%clk 00:12:32]} {[%emt
00:01:08]} a5 {[%clk 00:14:26]} {[%emt 00:02:11]} 40. a4 {[%clk 00:03:41]}
{[%emt 00:09:22]} Kc6 {[%clk 00:13:22]} {[%emt 00:01:32]} 41. Ne1 {[%clk
00:26:17]} {[%emt 00:07:55]} Kc5 {[%clk 00:41:27]} {[%emt 00:02:23]} 42. Nc2
{[%clk 00:22:29]} {[%emt 00:04:20]} Bg7 {[%clk 00:39:27]} {[%emt 00:02:29]} 43.
Kd3 {[%clk 00:21:56]} {[%emt 00:01:04]} Be5 {[%clk 00:35:48]} {[%emt 00:04:07]}
44. Ne3 {[%clk 00:17:52]} {[%emt 00:04:36]} Bc7 {[%clk 00:35:01]} {[%emt
00:01:15]} 45. Ke4 {[%clk 00:14:38]} {[%emt 00:03:46]} Kb4 {[%clk 00:34:38]}
{[%emt 00:00:52]} 46. Nd5+ {[%clk 00:13:03]} {[%emt 00:02:06]} Kxb3 {[%clk
00:35:02]} {[%emt 00:00:06]} 47. Nxc7 {[%clk 00:13:30]} {[%emt 00:00:04]} Kxa4
{[%clk 00:35:18]} {[%emt 00:00:13]} 48. Kd3 {[%clk 00:12:02]} {[%emt 00:01:59]}
Kb3 {[%clk 00:34:51]} {[%emt 00:00:54]} 49. Kd2 {[%clk 00:11:22]} {[%emt
00:01:13]} Kb2 {[%clk 00:26:31]} {[%emt 00:08:49]} 50. Nd5 {[%clk 00:11:20]}
{[%emt 00:00:33]} b5 {[%clk 00:26:43]} {[%emt 00:00:16]} 51. Nc3 {[%clk
00:11:11]} {[%emt 00:00:40]} b4 {[%clk 00:26:43]} {[%emt 00:00:30]} 52. Na4+
{[%clk 00:11:16]} {[%emt 00:00:26]} Kb3 {[%clk 00:26:39]} {[%emt 00:00:32]} 53.
Nc5+ {[%clk 00:11:39]} {[%emt 00:00:08]} Kc4 {[%clk 00:25:33]} {[%emt
00:01:34]} 54. Na4 {[%clk 00:10:24]} {[%emt 00:01:48]} Kd4 {[%clk 00:18:46]}
{[%emt 00:07:16]} 55. Nb2 {[%clk 00:09:42]} {[%emt 00:01:12]} Ke4 {[%clk
00:18:05]} {[%emt 00:01:10]} 56. Ke2 {[%clk 00:08:32]} {[%emt 00:01:41]} Kd4
{[%clk 00:17:02]} {[%emt 00:01:34]} 57. Kd2 {[%clk 00:08:46]} {[%emt 00:00:15]}
Ke4 {[%clk 00:17:02]} {[%emt 00:00:30]} 58. Ke2 {[%clk 00:09:11]} {[%emt
00:00:05]} Kd4 {[%clk 00:17:14]} {[%emt 00:00:18]} 59. Kd2 {[%emt 00:00:32]}
1/2-1/2

[Event "Schack-SM 2022: Mastarklassen-Elit"]
[Site "Fyrishov, Idrottsgatan 2, Uppsala, Sweden"]
[Date "2022.07.06"]
[Round "5.5"]
[White "Trost, Edvin"]
[Black "Cederstam, Carl"]
[Result "1/2-1/2"]
[TimeControl "90 minutes for 40 moves + 30 minutes for the rest of the game + 30 seconds per move from move one."]
[WhiteTitle "FM"]
[BlackTitle "FM"]
[WhiteFideId "1729519"]
[BlackFideId "1713329"]
[WhiteElo "2345"]
[BlackElo "2332"]

1. d4 {[%clk 01:30:59]} {[%emt 01:58:21]} d5 {[%clk 01:28:04]} {[%emt
00:02:56]} 2. c4 {[%clk 01:31:05]} {[%emt 00:00:24]} e6 {[%clk 01:27:44]}
{[%emt 00:00:50]} 3. Nf3 {[%clk 01:31:22]} {[%emt 00:00:12]} a6 {[%clk
01:27:56]} {[%emt 00:00:19]} 4. Bg5 {[%clk 01:31:11]} {[%emt 00:00:41]} Be7
{[%clk 01:28:07]} {[%emt 00:00:20]} 5. Bxe7 {[%clk 01:31:34]} {[%emt 00:00:06]}
Qxe7 {[%clk 01:28:32]} {[%emt 00:00:05]} 6. Nbd2 {[%clk 01:31:45]} {[%emt
00:00:17]} Nf6 {[%clk 01:27:51]} {[%emt 00:01:13]} 7. g3 {[%clk 01:31:38]}
{[%emt 00:00:38]} b6 {[%clk 01:26:04]} {[%emt 00:02:17]} 8. Bg2 {[%clk
01:31:22]} {[%emt 00:00:45]} Bb7 {[%clk 01:26:25]} {[%emt 00:00:08]} 9. O-O
{[%clk 01:31:41]} {[%emt 00:00:10]} Nbd7 {[%clk 01:25:01]} {[%emt 00:01:55]} 10.
Rc1 {[%clk 01:28:50]} {[%emt 00:03:21]} c5 {[%clk 01:25:19]} {[%emt 00:00:12]}
11. Ne5 {[%clk 01:26:26]} {[%emt 00:02:54]} cxd4 {[%clk 01:18:40]} {[%emt
00:07:09]} 12. Nxd7 {[%clk 01:26:14]} {[%emt 00:00:43]} Qxd7 {[%clk 01:18:02]}
{[%emt 00:01:07]} 13. Nf3 {[%clk 01:25:07]} {[%emt 00:01:36]} dxc4 {[%clk
01:05:18]} 14. Rxc4 {[%clk 01:25:01]} {[%emt 00:13:52]} Qd8 {[%clk 00:49:38]}
15. Rxd4 {[%clk 01:24:22]} {[%emt 00:17:19]} Qc7 {[%clk 00:47:04]} 16. Qa4+
{[%clk 01:20:43]} {[%emt 00:07:13]} b5 {[%clk 00:47:19]} 17. Qa3 {[%clk
01:17:02]} {[%emt 00:04:25]} Qe7 {[%clk 00:47:30]} 18. Rc1 {[%clk 01:16:44]}
{[%emt 00:01:08]} Qxa3 {[%clk 00:46:36]} 19. bxa3 {[%clk 01:16:50]} {[%emt
00:01:46]} O-O {[%clk 00:45:57]} 20. Ne5 {[%clk 01:15:01]} {[%emt 00:03:29]}
Bxg2 {[%clk 00:39:25]} 21. Kxg2 {[%clk 01:15:20]} {[%emt 00:07:12]} Rfc8 {[%clk
00:35:46]} 22. Rxc8+ {[%clk 01:14:47]} {[%emt 00:05:13]} Rxc8 {[%clk 00:36:15]}
23. Rd6 {[%clk 01:14:32]} {[%emt 00:00:46]} Ne4 {[%clk 00:28:15]} 24. Rxa6
{[%clk 01:14:45]} {[%emt 00:08:49]} Nc3 {[%clk 00:27:47]} 25. Rc6 {[%clk
01:02:14]} {[%emt 00:13:58]} Rxc6 {[%clk 00:28:10]} 26. Nxc6 {[%clk 01:02:40]}
{[%emt 00:00:11]} Nxa2 {[%clk 00:27:01]} 27. Kf1 {[%clk 01:01:37]} {[%emt
00:03:11]} Nc3 {[%clk 00:26:16]} 28. Na7 {[%clk 01:01:39]} {[%emt 00:01:44]}
Kf8 {[%clk 00:26:03]} 29. Ke1 {[%clk 01:01:29]} {[%emt 00:01:22]} Ke7 {[%clk
00:18:26]} 30. Kd2 {[%clk 01:01:50]} {[%emt 00:08:17]} 1/2-1/2